bitfinex/quotes_BTCUSD_20251120
["timestamp","ask_amount","ask_price","bid_price","bid_amount"]
[1763651563224,0.01103156,90649.0,90634.0,0.01103338]
[1763651563397,0.7904733,90650.0,90640.0,0.23168336]
[1763651563604,0.01137,90652.0,90647.0,0.0110318]
[1763651563808,0.00376,90654.0,90651.0,0.01103131]
[1763651563978,0.01479095,90654.0,90649.0,0.01103156]
[1763651564300,0.22062279,90653.0,90650.0,0.01103143]
[1763651564536,0.00376,90654.0,90650.0,0.22062791]
[1763651564759,0.01103107,90653.0,90646.0,0.01652028]
[1763651564929,0.22063474,90648.0,90646.0,0.01652028]
[1763651565135,0.22063242,90649.0,90646.0,0.24818965]
[1763651565340,0.22063449,90648.0,90646.0,0.01652028]
[1763651565543,0.22066654,90635.0,90627.0,0.22068368]
[1763651565783,0.22066654,90635.0,90626.0,0.01103436]
[1763651565784,0.22066827,90634.0,90629.0,0.01103399]
[1763651566005,0.0110329,90638.0,90630.0,0.01652028]
[1763651566006,0.01137,90633.0,90630.0,0.01652028]
[1763651566234,0.22072944,90609.0,90607.0,0.00376]
[1763651566462,0.22074811,90601.0,90579.0,0.01104008]
[1763651566677,0.01103667,90607.0,90597.0,0.01103789]
[1763651566678,0.22073349,90607.0,90597.0,0.01103789]
[1763651566918,0.2207385,90605.0,90595.0,0.01103813]
[1763651567138,0.2207408,90604.0,90600.0,0.01123752]
[1763651567356,0.22073777,90606.0,90601.0,0.0110374]
[1763651567570,0.22074108,90604.0,90600.0,0.0002]
[1763651567784,0.22073665,90606.0,90602.0,0.01103728]
[1763651567993,0.22073665,90606.0,90600.0,0.0002]
[1763651567994,0.00376,90608.0,90600.0,0.0002]
[1763651568233,0.00376,90608.0,90605.0,0.01103691]
[1763651568450,0.00376,90608.0,90607.0,0.00198489]
[1763651569152,0.00376,90608.0,90606.0,0.17823892]
[1763651569361,0.00376,90608.0,90606.0,0.01652028]
[1763651569571,0.00376,90608.0,90606.0,0.23725523]
[1763651570546,0.79054529,90620.0,90596.0,0.01103801]
[1763651570547,0.01103679,90606.0,90596.0,0.01103801]
[1763651570750,0.01103679,90606.0,90571.0,0.44164233]
[1763651570751,0.22074702,90602.0,90600.0,0.0002]
[1763651570964,0.2207471,90602.0,90600.0,0.0002]
[1763651571173,0.03994,90601.0,90600.0,0.0002]
[1763651571376,0.01103691,90605.0,90600.0,0.0002]
[1763651571377,0.56984302,90610.0,90601.0,0.0110374]
[1763651571587,0.56984302,90610.0,90605.0,0.01103691]
[1763651571798,0.22074667,90602.0,90600.0,0.0002]
[1763651571990,0.22074575,90604.0,90600.0,0.0002]
[1763651572194,0.01103667,90607.0,90600.0,0.0002]
[1763651572352,0.22074774,90602.0,90600.0,0.0002]
[1763651572735,0.01103679,90606.0,90601.0,0.0110374]
[1763651572936,0.22074611,90602.0,90600.0,0.0002]
[1763651573143,0.01508,90601.0,90600.0,0.0002]
[1763651573340,0.00376,90601.0,90600.0,0.0002]
[1763651574015,0.0437,90601.0,90600.0,0.0002]
[1763651575013,0.00376,90601.0,90600.0,0.0002]
[1763651575224,0.0929457,90624.0,90616.0,0.01103557]
[1763651575225,0.00376,90617.0,90616.0,0.01103557]
[1763651575425,0.02758681,90623.0,90619.0,0.01103521]
[1763651575794,0.23206452,90624.0,90617.0,0.01103545]
[1763651575975,0.23206452,90624.0,90616.0,0.01103557]
[1763651575976,0.02758681,90623.0,90610.0,0.02755658]
[1763651576188,0.0110363,90610.0,90602.0,0.01652028]
[1763651576409,0.22073435,90607.0,90606.0,0.01652028]
[1763651576631,0.22072131,90612.0,90608.0,0.01103655]
[1763651576786,0.01103606,90612.0,90606.0,0.01652028]
[1763651577002,0.22074627,90602.0,90600.0,0.0002]
[1763651577405,0.03994,90601.0,90600.0,0.0002]
[1763651578648,0.01508,90601.0,90600.0,0.0002]
[1763651579272,0.03994,90601.0,90600.0,0.0002]
[1763651580240,0.02813908,90607.0,90600.0,0.0002]
[1763651580454,0.03994,90601.0,90600.0,0.0002]
[1763651580663,0.03994,90601.0,90560.0,0.01672028]
[1763651580664,0.06718249,90600.0,90560.0,0.01672028]
[1763651580911,0.01389936,90599.0,90588.0,0.01652028]
[1763651581049,0.02759412,90599.0,90588.0,0.01652028]
[1763651581267,0.01137,90598.0,90588.0,0.01652028]
[1763651581466,0.01137,90598.0,90591.0,0.00023713]
[1763651581866,0.00376,90607.0,90588.0,0.01575741]
[1763651581867,0.02759199,90606.0,90588.0,0.01575741]
[1763651582436,0.01245,90589.0,90588.0,0.01575741]
[1763651582824,0.05254,90589.0,90560.0,0.01672028]
[1763651583187,0.56984302,90584.0,90583.0,0.00023717]
[1763651583558,0.02396,90588.0,90583.0,0.00023717]
[1763651583800,0.01613,90584.0,90583.0,0.00023717]
[1763651584151,0.01613,90584.0,90572.0,0.01104093]
[1763651584365,0.00376,90587.0,90584.0,0.01103947]
[1763651584741,0.00376,90587.0,90584.0,0.231827]
[1763651584942,0.56984302,90600.0,90581.0,0.01103984]
[1763651584943,0.01245,90599.0,90596.0,0.01103801]
[1763651585148,0.01103691,90605.0,90594.0,0.01652028]
[1763651585322,0.01245,90600.0,90594.0,0.01652028]
[1763651585524,0.02716813,90595.0,90585.0,0.01103935]
[1763651585950,0.22077467,90591.0,90587.0,0.22078197]
[1763651586154,0.02716813,90595.0,90585.0,0.323]
[1763651586354,0.02759564,90594.0,90593.0,0.01652028]
[1763651586564,0.02759503,90596.0,90593.0,0.01652028]
[1763651586967,0.02759503,90596.0,90595.0,0.22076273]
[1763651587169,0.22075833,90597.0,90593.0,0.02755866]
[1763651587373,0.22076517,90594.0,90593.0,0.01652028]
[1763651587605,0.01245,90600.0,90595.0,0.22076273]
[1763651587804,0.01245,90600.0,90597.0,0.01103789]
[1763651588022,0.24834806,90599.0,90593.0,0.01652028]
[1763651588228,0.02348752,90600.0,90584.0,0.01103947]
[1763651588440,0.02348752,90600.0,90593.0,0.01652028]
[1763651588441,0.01245,90600.0,90593.0,0.01652028]
[1763651588761,0.02759412,90599.0,90593.0,0.01652028]
[1763651588969,0.01245,90600.0,90597.0,0.01103789]
[1763651589189,0.02759442,90598.0,90592.0,0.0110385]
[1763651589418,0.02759442,90598.0,90597.0,0.22075786]
[1763651589642,0.01137,90624.0,90603.0,0.01103716]
[1763651589643,0.01103594,90613.0,90603.0,0.01103716]
[1763651589865,0.22072131,90612.0,90608.0,0.01652028]
[1763651590089,0.01613,90604.0,90600.0,0.01103752]
[1763651590287,0.01613,90604.0,90601.0,0.23178545]
[1763651590455,0.0266482,90606.0,90603.0,0.23178038]
[1763651590659,0.0266482,90606.0,90603.0,0.01103716]
[1763651590836,0.02823391,90614.0,90609.0,0.01103643]
[1763651591047,0.01103436,90626.0,90616.0,0.01103557]
[1763651591252,0.01137,90633.0,90610.0,0.01652028]
[1763651591253,0.01137,90633.0,90621.0,0.01103496]
[1763651591487,0.01137,90633.0,90610.0,0.01652028]
[1763651591488,0.23201379,90644.0,90638.0,0.23168866]
[1763651591672,0.02348277,90639.0,90625.0,0.01103448]
[1763651591879,0.01103204,90645.0,90624.0,0.01652028]
[1763651591880,0.01245,90651.0,90624.0,0.01652028]
[1763651592084,0.01103192,90646.0,90638.0,0.02755318]
[1763651592302,0.01482355,90648.0,90643.0,0.01103229]
[1763651592507,0.01103277,90639.0,90629.0,0.01103399]
[1763651592719,0.01103277,90639.0,90624.0,0.01652028]
[1763651592720,0.56984302,90640.0,90624.0,0.01652028]
[1763651592924,0.02758194,90639.0,90624.0,0.01652028]
[1763651593769,0.02758194,90639.0,90615.0,0.00376]
[1763651594001,0.56984302,90634.0,90610.0,0.01652028]
[1763651594195,0.02758377,90633.0,90610.0,0.01652028]
[1763651594407,0.02022401,90632.0,90595.0,0.00376]
[1763651594603,0.56984302,90620.0,90595.0,0.00376]
[1763651594801,0.56984302,90610.0,90594.0,0.01652028]
[1763651595004,0.01613,90595.0,90565.0,0.0779249]
[1763651595221,0.01245,90596.0,90564.0,0.0779249]
[1763651595446,0.56984302,90590.0,90564.0,0.0779249]
[1763651595613,0.01245,90596.0,90578.0,0.01652028]
[1763651596048,0.02396,90595.0,90578.0,0.01652028]
[1763651596585,0.02396,90595.0,90563.0,0.00376]
[1763651596790,0.02396,90595.0,90579.0,0.01652028]
[1763651597128,0.01245,90596.0,90579.0,0.01652028]
[1763651597758,0.02396,90595.0,90580.0,0.01652028]
[1763651598509,0.01245,90596.0,90586.0,0.01652028]
[1763651598712,0.01245,90596.0,90560.0,0.01600056]
[1763651598946,0.01245,90596.0,90586.0,0.01652028]
[1763651599603,0.01245,90596.0,90560.0,0.01600056]
[1763651599815,0.56984302,90590.0,90582.0,0.01652028]
[1763651600003,0.03641,90596.0,90582.0,0.01652028]
[1763651600432,0.03937687,90649.0,90582.0,0.01652028]
[1763651600433,0.56984302,90620.0,90582.0,0.01652028]
[1763651600636,0.02025174,90610.0,90606.0,0.01652028]
[1763651600836,0.04784281,90609.0,90582.0,0.01652028]
[1763651601038,0.56984302,90600.0,90582.0,0.01652028]
[1763651601241,0.05155412,90599.0,90582.0,0.01652028]
[1763651601399,0.56984302,90600.0,90582.0,0.01652028]
[1763651601602,0.56984302,90620.0,90596.0,0.01652028]
[1763651601856,0.02025083,90610.0,90596.0,0.01652028]
[1763651602066,0.0478419,90609.0,90596.0,0.01652028]
[1763651602269,0.02759107,90609.0,90596.0,0.01652028]
[1763651603034,0.02759107,90609.0,90597.0,0.01652028]
[1763651603515,0.02396,90608.0,90582.0,0.01652028]
[1763651603703,0.02759168,90607.0,90598.0,0.01652028]
[1763651603923,0.02396,90606.0,90582.0,0.01652028]
[1763651604127,0.01613,90599.0,90582.0,0.01652028]
[1763651604263,0.04372412,90599.0,90582.0,0.01652028]
[1763651604469,0.04372412,90599.0,90561.0,0.323]
[1763651604470,0.02858,90583.0,90561.0,0.01652028]
[1763651604677,0.02858,90583.0,90554.0,0.0779249]
[1763651604678,0.02858,90583.0,90562.0,0.01652028]
[1763651604889,0.02858,90583.0,90576.0,0.01652028]
[1763651605087,0.02858,90583.0,90562.0,0.01652028]
[1763651605366,0.01245,90583.0,90576.0,0.01652028]
[1763651605536,0.00376,90589.0,90561.0,0.323]
[1763651605740,0.00376,90589.0,90582.0,0.01652028]
[1763651605914,0.04004473,90597.0,90582.0,0.01652028]
[1763651607167,0.01245,90597.0,90582.0,0.01652028]
[1763651607375,0.71869496,90592.0,90562.0,0.01652028]
[1763651607660,0.02396,90591.0,90562.0,0.01652028]
[1763651607861,0.02759686,90590.0,90576.0,0.01652028]
[1763651608062,0.74629182,90590.0,90576.0,0.01652028]
[1763651608264,0.02396,90589.0,90576.0,0.01652028]
[1763651608589,0.02759747,90588.0,90562.0,0.01652028]
[1763651608790,0.02759747,90588.0,90576.0,0.01652028]
[1763651608997,0.02396,90587.0,90562.0,0.01652028]
[1763651609192,0.02707274,90586.0,90562.0,0.01652028]
[1763651609897,0.02707274,90586.0,90576.0,0.01652028]
[1763651610108,0.01513,90577.0,90575.0,0.0002372]
[1763651610500,0.03859,90576.0,90575.0,0.0002372]
[1763651610907,0.02759869,90584.0,90575.0,0.0002372]
[1763651611129,0.02759838,90585.0,90575.0,0.0002372]
[1763651611874,0.05105838,90585.0,90575.0,0.0002372]
[1763651612082,0.01513,90576.0,90575.0,0.0002372]
[1763651612535,0.03976,90576.0,90575.0,0.0002372]
[1763651612729,0.03976,90576.0,90544.0,0.33952028]
[1763651612730,0.71869496,90568.0,90544.0,0.01652028]
[1763651612949,0.05210249,90575.0,90518.0,0.11379513]
[1763651612950,0.01644,90559.0,90533.0,0.01652028]
[1763651613160,0.01227,90545.0,90533.0,0.01652028]
[1763651613364,0.01227,90545.0,90518.0,0.01652028]
[1763651613365,0.01227,90545.0,90538.0,0.01652028]
[1763651613573,0.01227,90545.0,90518.0,0.01652028]
[1763651613749,0.01227,90545.0,90539.0,0.01652028]
[1763651613947,0.01227,90545.0,90518.0,0.01652028]
[1763651614228,0.02463,90544.0,90518.0,0.01652028]
[1763651614425,0.02463,90544.0,90532.0,0.01652028]
[1763651614655,0.02463,90544.0,90518.0,0.01652028]
[1763651615158,0.23315589,90545.0,90532.0,0.01652028]
[1763651615381,0.02463,90544.0,90518.0,0.01652028]
[1763651615646,0.71869496,90540.0,90518.0,0.01652028]
[1763651615862,0.22092418,90529.0,90520.0,0.22094478]
[1763651616116,0.22091101,90535.0,90528.0,0.22092484]
[1763651616359,0.01227,90529.0,90518.0,0.01652028]
[1763651616567,0.01227,90529.0,90527.0,0.2209277]
[1763651616734,0.01227,90529.0,90518.0,0.01652028]
[1763651616896,0.01227,90529.0,90510.0,0.22097005]
[1763651617099,0.01227,90530.0,90523.0,0.01652028]
[1763651617301,0.01227,90530.0,90510.0,0.323]
[1763651617508,0.22095025,90519.0,90510.0,0.22097005]
[1763651617709,0.02209502,90519.0,90502.0,0.01652028]
[1763651617937,0.02209502,90519.0,90490.0,0.0002]
[1763651617938,0.22099203,90501.0,90500.0,10.03699352]
[1763651618161,0.27809203,90501.0,90500.0,9.79628061]
[1763651618312,0.23702203,90501.0,90500.0,9.79628061]
[1763651618513,0.01603,90501.0,90500.0,9.79628061]
[1763651618772,0.22095254,90518.0,90500.0,9.79850634]
[1763651618773,0.00376,90518.0,90500.0,9.79850634]
[1763651618921,0.22098241,90505.0,90500.0,9.79628061]
[1763651619124,0.23743203,90501.0,90500.0,9.79628061]
[1763651619713,0.2209893,90503.0,90500.0,9.79628061]
[1763651619928,0.23202559,90508.0,90501.0,0.01652028]
[1763651619929,0.22097523,90508.0,90501.0,0.01652028]
[1763651620285,0.01480752,90518.0,90500.0,8.97128061]
[1763651620286,0.05210249,90501.0,90500.0,8.97128061]
[1763651620576,0.22098959,90502.0,90500.0,8.93528061]
[1763651621295,0.01652028,90501.0,90500.0,8.93528061]
[1763651621411,0.06862277,90501.0,90500.0,8.41401901]
[1763651621642,0.39162277,90501.0,90500.0,8.12452929]
[1763651621852,0.50078771,90501.0,90500.0,8.12452929]
[1763651622062,0.50078771,90501.0,90500.0,7.07023284]
[1763651622273,0.50078771,90501.0,90500.0,6.76903169]
[1763651622476,0.5207731,90501.0,90500.0,6.54618883]
[1763651622694,0.5207731,90501.0,90500.0,6.29310847]
[1763651622903,0.5207731,90501.0,90500.0,5.98050755]
[1763651623112,2.41160816,90501.0,90500.0,4.18905754]
[1763651623322,2.41540816,90501.0,90500.0,4.18905754]
[1763651623723,0.02032028,90501.0,90500.0,4.18905754]
[1763651623944,0.0038,90501.0,90500.0,4.18905754]
[1763651626289,0.01104679,90524.0,90505.0,0.01104911]
[1763651626290,0.22093792,90524.0,90505.0,0.01104911]
[1763651626485,0.74201102,90530.0,90501.0,0.01153]
[1763651626486,0.02761851,90519.0,90501.0,0.01153]
[1763651626697,0.22098373,90505.0,90501.0,0.01153]
[1763651626898,0.22099203,90501.0,90500.0,4.18905754]
[1763651627677,0.22099203,90501.0,90500.0,4.16605754]
[1763651628233,0.22099203,90501.0,90500.0,3.96231948]
[1763651629894,0.0038,90502.0,90500.0,3.96231948]
[1763651630096,0.22479075,90502.0,90500.0,3.96009375]
[1763651630340,0.22479075,90502.0,90501.0,0.00219603]
[1763651631529,0.01104886,90507.0,90501.0,0.00219603]
[1763651631530,0.01227,90530.0,90502.0,0.01104947]
[1763651631740,0.01104472,90541.0,90529.0,0.01153]
[1763651631951,0.0038,90544.0,90529.0,0.01153]
[1763651632154,0.22091799,90532.0,90529.0,0.01153]
[1763651632358,0.01104447,90543.0,90529.0,0.01153]
[1763651632359,0.01104398,90547.0,90529.0,0.01153]
[1763651632558,0.22091274,90534.0,90529.0,0.01153]
[1763651632763,0.02761424,90533.0,90529.0,0.01153]
[1763651632932,0.02761119,90543.0,90529.0,0.01153]
[1763651633347,0.22090056,90539.0,90529.0,0.01153]
[1763651633520,0.01104545,90535.0,90529.0,0.01153]
[1763651633732,0.02627257,90534.0,90523.0,0.02756719]
[1763651633924,0.22092001,90531.0,90518.0,0.01153]
[1763651634127,0.22092001,90531.0,90506.0,0.2209783]
[1763651634128,0.01104679,90524.0,90511.0,0.01153]
[1763651634327,0.01104655,90526.0,90511.0,0.01153]
[1763651634328,0.02761729,90523.0,90515.0,0.01652028]
[1763651634529,0.02761729,90523.0,90513.0,0.01104813]
[1763651634728,0.02761729,90523.0,90511.0,0.00553]
[1763651635078,0.02761729,90523.0,90515.0,0.01652028]
[1763651635290,0.02761759,90522.0,90515.0,0.01652028]
[1763651635581,0.02761607,90527.0,90517.0,0.01104764]
[1763651635784,0.02761607,90527.0,90521.0,0.01104716]
[1763651636003,0.02761607,90527.0,90522.0,0.01104703]
[1763651636190,0.02761607,90527.0,90515.0,0.2485242]
[1763651636345,0.02761607,90527.0,90520.0,0.01104728]
[1763651636697,0.02761546,90529.0,90519.0,0.0110474]
[1763651637013,0.02761546,90529.0,90526.0,0.01104655]
[1763651637220,0.22090809,90536.0,90527.0,0.01104642]
[1763651637424,0.01104618,90529.0,90528.0,0.00139437]
[1763651637638,0.03768099,90529.0,90528.0,0.00139437]
[1763651637864,0.03866164,90529.0,90528.0,0.00139437]
[1763651639616,0.09076413,90529.0,90528.0,0.00139437]
[1763651640000,0.07456986,90529.0,90528.0,0.00139437]
[1763651640205,0.02293899,90529.0,90528.0,0.00139437]
[1763651640349,0.09076413,90529.0,90528.0,0.00139437]
[1763651641393,0.43389401,90529.0,90528.0,0.00139437]
[1763651641605,0.40627855,90529.0,90528.0,0.00139437]
[1763651641808,0.22099203,90501.0,90500.0,3.90148812]
[1763651643275,0.27309452,90501.0,90500.0,3.90148812]
[1763651643817,0.01104874,90508.0,90500.0,3.90148812]
[1763651644018,0.0038,90508.0,90503.0,0.01104935]
[1763651644217,0.0038,90508.0,90500.0,3.90148812]
[1763651644474,0.22099117,90502.0,90500.0,3.90148812]
[1763651644881,0.05210249,90501.0,90500.0,3.90148812]
[1763651645305,0.07226147,90501.0,90500.0,3.90148812]
[1763651647618,0.07226147,90501.0,90500.0,3.90231928]
[1763651648545,0.39526147,90501.0,90500.0,3.90231928]
[1763651648954,0.39526147,90501.0,90500.0,3.29127879]
[1763651649181,2.39526147,90501.0,90500.0,3.01525079]
[1763651649422,2.41259234,90501.0,90500.0,3.01525079]
[1763651650384,0.39526147,90501.0,90500.0,3.01525079]
[1763651652361,2.39526147,90501.0,90500.0,3.01525079]
[1763651652563,2.39526147,90501.0,90500.0,2.3631089]
[1763651652764,2.39526147,90501.0,90500.0,2.08913298]
[1763651652933,2.39526147,90501.0,90500.0,1.77747919]
[1763651653136,2.39526147,90501.0,90500.0,1.73395027]
[1763651653402,2.39526147,90501.0,90500.0,1.70073234]
[1763651653822,0.02015898,90501.0,90500.0,1.70073234]
[1763651654056,0.0374896,90501.0,90500.0,1.70073234]
[1763651654273,0.0651136,90501.0,90500.0,1.70073234]
[1763651654487,0.11721609,90501.0,90500.0,1.70073234]
[1763651654836,0.44021609,90501.0,90500.0,1.70073234]
[1763651655047,0.41259209,90501.0,90500.0,1.70073234]
[1763651656254,0.41259209,90501.0,90500.0,1.61873234]
[1763651656456,0.52899209,90501.0,90500.0,1.61873234]
[1763651657578,0.41259209,90501.0,90500.0,1.61873234]
[1763651657784,0.3604896,90501.0,90500.0,1.61873234]
[1763651657996,0.41259209,90501.0,90500.0,1.61873234]
[1763651658426,0.3604896,90501.0,90500.0,1.61873234]
[1763651658639,0.41259209,90501.0,90500.0,1.61873234]
[1763651659300,2.41259209,90501.0,90500.0,0.95238875]
[1763651659947,2.63358412,90501.0,90500.0,0.95238875]
[1763651660387,2.74998412,90501.0,90500.0,0.95238875]
[1763651660821,2.74998412,90501.0,90500.0,0.44945921]
[1763651661032,2.74998412,90501.0,90500.0,0.40147479]
[1763651661991,2.63358412,90501.0,90500.0,0.40147479]
[1763651663313,2.63358412,90501.0,90500.0,0.35547479]
[1763651664617,2.63358412,90501.0,90485.0,0.01098786]
[1763651664618,0.59611894,90491.0,90485.0,0.01098786]
[1763651664824,0.61627792,90491.0,90485.0,0.01098786]
[1763651666531,0.73267792,90491.0,90485.0,0.01098786]
[1763651666732,0.61627792,90491.0,90485.0,0.01098786]
[1763651667206,0.70109907,90491.0,90485.0,0.01098786]
[1763651667413,0.70109907,90491.0,90462.0,0.025]
[1763651667414,0.27318735,90463.0,90462.0,0.025]
[1763651667655,0.02395898,90463.0,90462.0,0.025]
[1763651667896,0.0038,90463.0,90462.0,0.025]
[1763651668120,0.0038,90463.0,90462.0,0.04063]
[1763651668321,0.22488486,90463.0,90462.0,0.025]
[1763651668537,0.29914339,90463.0,90462.0,0.025]
[1763651668965,0.29714339,90463.0,90462.0,0.025]
[1763651669808,0.2450409,90463.0,90462.0,0.025]
[1763651670022,0.22488486,90463.0,90462.0,0.025]
[1763651670229,0.2450518,90463.0,90462.0,0.025]
[1763651670433,0.29715429,90463.0,90462.0,0.018]
[1763651670670,0.29715429,90463.0,90462.0,0.01912864]
[1763651670895,0.29815429,90463.0,90462.0,0.01912864]
[1763651672184,0.27319957,90458.0,90403.0,0.42235]
[1763651672387,0.27319957,90458.0,90413.0,0.01115035]
[1763651672388,0.30988679,90458.0,90413.0,0.01115035]
[1763651672681,0.30988679,90458.0,90413.0,9e-05]
[1763651673322,0.30988679,90458.0,90417.0,0.01105986]
[1763651673526,0.30988679,90458.0,90421.0,0.01105937]
[1763651673527,0.39293917,90458.0,90421.0,0.01105937]
[1763651673738,0.39293917,90458.0,90428.0,0.01184]
[1763651673890,0.30988679,90458.0,90428.0,0.01184]
[1763651674102,0.63388679,90458.0,90428.0,0.22116927]
[1763651674320,0.5817843,90458.0,90427.0,0.01184]
[1763651674567,0.63388679,90458.0,90427.0,0.01184]
[1763651674806,0.5817843,90458.0,90431.0,0.01105815]
[1763651674990,0.5817843,90458.0,90428.0,0.01105852]
[1763651675358,0.5817843,90458.0,90434.0,0.01105778]
[1763651675572,0.01752028,90458.0,90441.0,0.01105693]
[1763651675749,0.02863713,90458.0,90444.0,0.23693661]
[1763651676007,0.02863713,90458.0,90447.0,0.01105619]
[1763651676214,0.02863713,90458.0,90449.0,0.01105595]
[1763651676417,0.02863713,90458.0,90453.0,0.01105546]
[1763651676623,0.02863713,90458.0,90456.0,0.22110077]
[1763651676844,0.001,90458.0,90457.0,0.00295754]
[1763651677075,0.001,90458.0,90453.0,0.01105546]
[1763651677076,0.0038,90463.0,90440.0,0.01105705]
[1763651677283,0.5731661,90460.0,90441.0,0.01105693]
[1763651677447,0.22110297,90456.0,90443.0,0.01105668]
[1763651677652,0.02763805,90455.0,90444.0,0.01627036]
[1763651677853,0.22110218,90456.0,90454.0,0.00023768]
[1763651678033,0.02645942,90455.0,90454.0,0.00023768]
[1763651678240,0.0314356,90463.0,90454.0,0.00023768]
[1763651678467,0.01848594,90463.0,90454.0,0.00023768]
[1763651678674,0.0038,90463.0,90455.0,0.01105522]
[1763651678927,0.0038,90463.0,90454.0,0.00023768]
[1763651678928,0.0038,90463.0,90456.0,0.01105509]
[1763651679138,0.01105179,90483.0,90456.0,0.01105509]
[1763651679139,0.02763163,90476.0,90465.0,0.01105399]
[1763651679370,0.0038,90473.0,90470.0,0.01105338]
[1763651679583,0.0038,90473.0,90466.0,0.23213109]
[1763651679784,0.0038,90473.0,90460.0,0.0110546]
[1763651679998,0.22486228,90473.0,90457.0,0.01105497]
[1763651680202,0.22486228,90473.0,90455.0,0.01184]
[1763651680203,0.02483972,90472.0,90455.0,0.01184]
[1763651680411,0.22107923,90466.0,90455.0,0.01184]
[1763651680620,0.02598375,90465.0,90455.0,0.01184]
[1763651680839,0.02598375,90465.0,90455.0,0.03269819]
[1763651681041,0.02598375,90465.0,90455.0,0.02085819]
[1763651681254,0.02763438,90467.0,90459.0,0.23214907]
[1763651681459,0.02763316,90471.0,90461.0,0.22108946]
[1763651681631,0.02763316,90471.0,90462.0,0.01105436]
[1763651681829,0.02444355,90473.0,90468.0,0.01105363]
[1763651682050,0.0038,90473.0,90467.0,0.23212875]
[1763651682248,0.0038,90473.0,90467.0,0.01105375]
[1763651682390,0.0038,90473.0,90466.0,0.23213122]
[1763651682607,0.03143255,90473.0,90465.0,0.01105399]
[1763651683169,0.22106338,90472.0,90458.0,0.23215193]
[1763651683388,0.02353342,90471.0,90460.0,0.0110546]
[1763651683608,0.5731661,90470.0,90457.0,0.01184]
[1763651683819,0.22107508,90467.0,90445.0,0.23218443]
[1763651684023,0.02763469,90466.0,90450.0,0.01105583]
[1763651684223,0.22109003,90461.0,90447.0,0.01105619]
[1763651684433,0.02763652,90460.0,90454.0,0.01119511]
[1763651684838,0.02763408,90468.0,90454.0,0.01725045]
[1763651685160,0.02763408,90468.0,90459.0,0.01105473]
[1763651685311,0.22107519,90467.0,90456.0,0.01105509]
[1763651685525,0.02763469,90466.0,90463.0,0.01105424]
[1763651685733,0.0038,90473.0,90463.0,0.01105424]
[1763651685932,0.0038,90473.0,90470.0,0.01105338]
[1763651686140,0.0038,90473.0,90471.0,0.22106524]
[1763651686489,0.5731661,90500.0,90483.0,0.01105179]
[1763651686695,0.01104899,90506.0,90483.0,0.01105179]
[1763651686696,0.0038,90492.0,90483.0,0.00619511]
[1763651687029,0.22102378,90488.0,90483.0,0.00619511]
[1763651687232,0.02099268,90487.0,90483.0,0.00619511]
[1763651687435,0.24201997,90487.0,90483.0,0.00619511]
[1763651687642,0.22102729,90487.0,90483.0,0.00619511]
[1763651687838,0.22102905,90486.0,90483.0,0.00619511]
[1763651688038,0.24866103,90485.0,90483.0,0.00619511]
[1763651688278,0.02762919,90484.0,90483.0,0.00619511]
[1763651689117,0.0192307,90484.0,90483.0,0.00619511]
[1763651689252,0.02301905,90488.0,90483.0,0.00619511]
[1763651689454,0.001,90484.0,90483.0,0.00619511]
[1763651689656,0.0194,90484.0,90483.0,0.00619511]
[1763651689854,0.001,90484.0,90483.0,0.00619511]
[1763651690071,0.0048,90484.0,90483.0,0.02144511]
[1763651690281,0.001,90484.0,90483.0,0.04399511]
[1763651690491,0.001,90484.0,90483.0,0.00619511]
[1763651690694,0.001,90484.0,90483.0,0.02144511]
[1763651690899,0.00153351,90498.0,90488.0,0.23207426]
[1763651691137,0.001,90484.0,90483.0,0.00619511]
[1763651691331,0.02762705,90491.0,90483.0,0.00619511]
[1763651691554,0.00153351,90498.0,90484.0,0.01105167]
[1763651691555,0.2501599,90498.0,90484.0,0.01105167]
[1763651691781,0.22101001,90494.0,90479.0,0.01105228]
[1763651692017,0.24423997,90493.0,90480.0,0.22104268]
[1763651692223,0.02346599,90492.0,90480.0,0.03627507]
[1763651692419,0.02346599,90492.0,90483.0,0.22103478]
[1763651692629,0.00153351,90498.0,90491.0,0.01525]
[1763651692893,0.00253351,90498.0,90496.0,0.22100306]
[1763651693102,0.00253351,90498.0,90496.0,0.22080317]
[1763651693253,0.00253351,90498.0,90497.0,0.10739631]
[1763651693671,0.00253351,90498.0,90461.0,0.01184]
[1763651693672,0.00253351,90498.0,90491.0,0.23206522]
[1763651693861,0.00253351,90498.0,90492.0,0.0110507]
[1763651694068,0.00253351,90498.0,90491.0,0.23206522]
[1763651694069,0.00253351,90498.0,90488.0,0.01652028]
[1763651694266,0.00253351,90498.0,90481.0,0.01105204]
[1763651694267,0.01358347,90498.0,90481.0,0.01105204]
[1763651694480,0.22100424,90496.0,90484.0,0.01105167]
[1763651694667,0.02365038,90495.0,90486.0,0.01105143]
[1763651694868,0.00153351,90498.0,90490.0,0.23206909]
[1763651694869,0.02915842,90498.0,90490.0,0.23206909]
[1763651695118,0.02915842,90498.0,90472.0,0.33159138]
[1763651695119,0.22101007,90494.0,90472.0,0.01105314]
[1763651695321,0.01358347,90498.0,90473.0,0.03907028]
[1763651695523,0.01105033,90495.0,90473.0,0.01652028]
[1763651695651,0.01105082,90491.0,90473.0,0.01652028]
[1763651695857,0.2210355,90484.0,90473.0,0.03376967]
[1763651696053,0.22102821,90487.0,90475.0,0.01105277]
[1763651696281,0.02762858,90486.0,90473.0,0.24863302]
[1763651696482,0.02762858,90486.0,90473.0,0.01652028]
[1763651696799,0.5731661,90490.0,90470.0,0.01184]
[1763651696996,0.02762888,90485.0,90475.0,0.01105277]
[1763651697340,0.02762888,90485.0,90478.0,0.01105241]
[1763651697584,0.02762888,90485.0,90480.0,0.01105216]
[1763651697735,0.02762888,90485.0,90475.0,0.01105277]
[1763651697941,0.02762766,90489.0,90474.0,0.23210982]
[1763651698146,0.02762766,90489.0,90482.0,0.01105192]
[1763651698357,0.02762766,90489.0,90484.0,0.01105167]
[1763651698757,0.02762766,90489.0,90484.0,0.23208279]
[1763651698956,0.5769661,90494.0,90486.0,0.23207936]
[1763651698957,0.02762797,90488.0,90486.0,0.23207936]
[1763651699158,0.01105143,90486.0,90462.0,0.01105436]
[1763651699358,0.02762888,90485.0,90479.0,0.01105228]
[1763651699562,0.02762888,90485.0,90483.0,0.22103526]
[1763651699763,0.02762766,90489.0,90479.0,0.01105228]
[1763651699964,0.02762797,90488.0,90485.0,0.01105155]
[1763651700166,0.01105082,90491.0,90475.0,0.01184]
[1763651700369,0.01105241,90478.0,90461.0,0.01105448]
[1763651700574,0.02623277,90475.0,90451.0,0.01184]
[1763651700774,0.0110557,90451.0,90430.0,0.01652028]
[1763651700951,0.5731661,90450.0,90434.0,0.01105778]
[1763651701149,0.22112246,90448.0,90434.0,0.01105778]
[1763651701390,0.0038,90451.0,90445.0,0.01105644]